fUSD/lending_fUSD_20241107
["ID","MTS","AMOUNT","RATE_DAILY","PERIOD"]
[341590844,1731011484943,-500.0,0.00028767,2]
[341590845,1731011484952,-500.0,0.00028767,2]
[341590846,1731011484962,-500.0,0.00028767,2]
[341590847,1731011484976,-500.0,0.00028767,2]
[341590848,1731011484986,-622.33,0.00028767,2]
[341590849,1731011484996,-500.0,0.00028767,2]
[341590850,1731011485006,-500.0,0.00028767,2]
[341590851,1731011485016,-735.0,0.00028767,2]
[341590852,1731011485026,-500.0,0.00028767,2]
[341590853,1731011485035,-500.0,0.00028767,2]
[341590854,1731011485046,-1157.84,0.00028767,2]
[341590855,1731011485055,-500.0,0.00028767,2]
[341590856,1731011485065,-500.0,0.00028767,2]
[341590857,1731011485074,-500.0,0.00028767,2]
[341590858,1731011485084,-500.0,0.00028767,2]
[341590859,1731011485093,-500.0,0.00028767,2]
[341590860,1731011485102,-664.88,0.00028767,2]
[341590861,1731011485111,-500.0,0.00028767,2]
[341590862,1731011485120,-842.0,0.00028767,2]
[341590863,1731011485129,-500.0,0.00028767,2]
[341590864,1731011485141,-500.0,0.00028767,2]
[341590865,1731011485155,-500.0,0.00028767,2]
[341590866,1731011485165,-500.0,0.00028767,2]
[341590867,1731011485174,-500.0,0.00028767,2]
[341590868,1731011485183,-500.0,0.00028767,2]
[341590869,1731011485192,-500.0,0.00028767,2]
[341590870,1731011485202,-500.0,0.00028767,2]
[341590871,1731011485211,-500.0,0.00028767,2]
[341590872,1731011485220,-500.0,0.00028767,2]
[341590873,1731011485229,-500.0,0.00028767,2]
[341590874,1731011485239,-849.33,0.00028767,2]
[341590875,1731011485248,-500.0,0.00028767,2]
[341590876,1731011485257,-500.0,0.00028767,2]
[341590877,1731011485266,-500.0,0.00028767,2]
[341590878,1731011485275,-1146.86,0.00028767,2]
[341590879,1731011485284,-500.0,0.00028767,2]
[341590880,1731011485294,-2367.1,0.00028767,2]
[341590881,1731011485304,-812.73,0.00028767,2]
[341590882,1731011485313,-500.0,0.00028767,2]
[341590883,1731011485323,-500.0,0.00028767,2]
[341590884,1731011485333,-505.41,0.00028767,2]
[341590885,1731011485342,-500.0,0.00028767,2]
[341590886,1731011485352,-859.78,0.00028767,2]
[341590887,1731011485361,-500.0,0.00028767,2]
[341590888,1731011485372,-1030.59,0.00028767,2]
[341590889,1731011485385,-500.0,0.00028767,2]
[341590890,1731011485396,-500.0,0.00028767,2]
[341590891,1731011485406,-1049.18,0.00028767,2]
[341590892,1731011485415,-758.06,0.00028767,2]
[341590893,1731011485424,-500.0,0.00028767,2]
[341590894,1731011485435,-584.38,0.00028767,2]
[341590895,1731011485444,-571.31940005,0.00028767,2]
[341590896,1731011485453,-795.48,0.00028767,2]
[341590897,1731011485463,-284.936427,0.00028767,7]
[341590898,1731011485472,-772.33,0.00028767,2]
[341590899,1731011485481,-284.936427,0.00028767,7]
[341590900,1731011485491,-500.0,0.00028767,2]
[341590901,1731011485500,-500.0,0.00028767,2]
[341590902,1731011485509,-500.0,0.00028767,2]
[341590903,1731011485518,-500.0,0.00028767,2]
[341590904,1731011485527,-826.25,0.00028767,2]
[341590905,1731011485537,-500.0,0.00028767,2]
[341590906,1731011485546,-500.0,0.00028767,2]
[341590907,1731011485555,-500.0,0.00028767,2]
[341590908,1731011485564,-922.87,0.00028767,2]
[341590909,1731011485573,-500.0,0.00028767,2]
[341590910,1731011485583,-570.07,0.00028767,2]
[341590911,1731011485592,-500.0,0.00028767,2]
[341590912,1731011485601,-990.65,0.00028767,2]
[341590913,1731011485611,-500.0,0.00028767,2]
[341590914,1731011485620,-1391.61,0.00028767,2]
[341590915,1731011485629,-500.0,0.00028767,2]
[341590916,1731011485638,-962.46,0.00028767,2]
[341590917,1731011485648,-500.0,0.00028767,2]
[341590918,1731011485657,-525.18,0.00028767,2]
[341590919,1731011485666,-500.0,0.00028767,2]
[341590920,1731011485676,-746.75,0.00028767,2]
[341590921,1731011485685,-500.0,0.00028767,2]
[341590922,1731011485694,-500.0,0.00028767,2]
[341590923,1731011485703,-500.0,0.00028767,2]
[341590924,1731011485713,-500.0,0.00028767,2]
[341590925,1731011485723,-500.0,0.00028767,2]
[341590926,1731011485732,-623.38,0.00028767,2]
[341590927,1731011485741,-500.0,0.00028767,2]
[341590928,1731011485750,-500.0,0.00028767,2]
[341590929,1731011485759,-1391.91,0.00028767,2]
[341590930,1731011485768,-500.0,0.00028767,2]
[341590931,1731011485778,-500.0,0.00028767,2]
[341590932,1731011485787,-513.5,0.00028767,2]
[341590933,1731011485797,-514.62842928,0.00028767,2]
[341590934,1731011485806,-500.0,0.00028767,2]
[341590935,1731011485816,-500.0,0.00028767,2]
[341590936,1731011485825,-212.68954459,0.00028767,2]
[341590937,1731011485835,-500.0,0.00028767,2]
[341590938,1731011485844,-500.0,0.00028767,2]
[341590939,1731011485853,-500.0,0.00028767,2]
[341590940,1731011485863,-500.0,0.00028767,2]
[341590941,1731011485872,-741.21,0.00028767,2]
[341590942,1731011485881,-500.0,0.00028767,2]
[341590943,1731011485892,-500.0,0.00028767,2]
[341590944,1731011485901,-500.0,0.00028767,2]
[341590945,1731011485911,-632.28,0.00028767,2]
[341590946,1731011485920,-708.91,0.00028767,2]
[341590947,1731011485929,-782.76,0.00028767,2]
[341590948,1731011485939,-500.0,0.00028767,2]
[341590949,1731011485948,-358.9,0.00028767,2]
[341590950,1731011485959,-602.34,0.00028767,2]
[341590951,1731011485971,-500.0,0.00028767,2]
[341590952,1731011485981,-1858.207835,0.00028767,7]
[341590953,1731011485990,-500.0,0.00028767,2]
[341590954,1731011486000,-1858.207843,0.00028767,7]
[341590955,1731011486010,-500.0,0.00028767,2]
[341590956,1731011486019,-500.0,0.00028767,2]
[341590957,1731011486028,-500.45,0.00028767,2]
[341590958,1731011486038,-500.0,0.00028767,2]
[341590959,1731011486048,-500.0,0.00028767,2]
[341590960,1731011486057,-500.0,0.00028767,2]
[341590961,1731011486066,-500.0,0.00028767,2]
[341590962,1731011486075,-513.55,0.00028767,2]
[341590963,1731011486085,-500.0,0.00028767,2]
[341590964,1731011486095,-500.0,0.00028767,2]
[341590965,1731011486104,-500.0,0.00028767,2]
[341590966,1731011486114,-500.0,0.00028767,2]
[341590967,1731011486123,-847.49,0.00028767,2]
[341590968,1731011486133,-500.0,0.00028767,2]
[341590969,1731011486143,-196.027821,0.00028767,7]
[341590970,1731011486151,-3273.297285,0.00028767,7]
[341590971,1731011486161,-627.61,0.00028767,2]
[341590972,1731011486170,-196.027824,0.00028767,7]
[341590973,1731011486179,-3273.297288,0.00028767,7]
[341590974,1731011486188,-500.0,0.00028767,2]
[341590975,1731011486197,-500.0,0.00028767,2]
[341590976,1731011486207,-758.1,0.00028767,2]
[341590977,1731011486216,-500.0,0.00028767,2]
[341590978,1731011486226,-500.0,0.00028767,2]
[341590979,1731011486235,-443.42462616,0.00028767,2]
[341590980,1731011486245,-500.0,0.00028767,2]
[341590981,1731011486256,-500.0,0.00028767,2]
[341590982,1731011486267,-500.0,0.00028767,2]
[341590983,1731011486276,-521.08,0.00028767,2]
[341590984,1731011486287,-500.0,0.00028767,2]
[341590985,1731011486298,-1032.51,0.00028767,2]
[341590986,1731011486309,-500.0,0.00028767,2]
[341590987,1731011486318,-500.0,0.00028767,2]
[341590988,1731011486328,-500.0,0.00028767,2]
[341590989,1731011486337,-500.0,0.00028767,2]
[341590990,1731011486347,-304.431527,0.00028767,2]
[341590991,1731011486357,-500.0,0.00028767,2]
[341590992,1731011486366,-512.03,0.00028767,2]
[341590993,1731011486375,-633.18,0.00028767,2]
[341590994,1731011486384,-304.431526,0.00028767,2]
[341590995,1731011486396,-500.0,0.00028767,2]
[341590996,1731011486405,-462.79172063,0.00028767,2]
[341590997,1731011486415,-500.0,0.00028767,2]
[341590998,1731011486424,-500.0,0.00028767,2]
[341590999,1731011486434,-692.91,0.00028767,2]
[341591000,1731011486444,-1047.6,0.00028767,2]
[341591001,1731011486453,-730.81,0.00028767,2]
[341591002,1731011486463,-500.0,0.00028767,2]
[341591003,1731011486472,-1016.1,0.00028767,2]
[341591004,1731011486481,-1860.33,0.00028767,2]
[341591005,1731011486490,-500.0,0.00028767,2]
[341591006,1731011486499,-602.92,0.00028767,2]
[341591007,1731011486508,-500.0,0.00028767,2]
[341591008,1731011486517,-500.0,0.00028767,2]
[341591009,1731011486526,-500.0,0.00028767,2]
[341591010,1731011486536,-1864.69,0.00028767,2]
[341591011,1731011486545,-1880.48,0.00028767,2]
[341591012,1731011486555,-500.0,0.00028767,2]
[341591013,1731011486564,-500.0,0.00028767,2]
[341591014,1731011486573,-1023.36,0.00028767,2]
[341591015,1731011486582,-759.25,0.00028767,2]
[341591016,1731011486591,-1882.14,0.00028767,2]
[341591017,1731011486600,-500.0,0.00028767,2]
[341591018,1731011486610,-12863.27,0.00028767,2]
[341591019,1731011486619,-810.01,0.00028767,2]
[341591020,1731011486628,-500.0,0.00028767,2]
[341591021,1731011486639,-529.48,0.00028767,2]
[341591022,1731011486648,-500.0,0.00028767,2]
[341591023,1731011486658,-741.68,0.00028767,2]
[341591024,1731011486667,-1287.22,0.00028767,2]
[341591025,1731011486676,-500.0,0.00028767,2]
[341591026,1731011486685,-504.3,0.00028767,2]
[341591027,1731011486694,-1180.37,0.00028767,2]
[341591028,1731011486703,-844.4,0.00028767,2]
[341591029,1731011486712,-803.88,0.00028767,2]
[341591030,1731011486722,-219.20582166,0.00028767,2]
[341591031,1731011486732,-500.0,0.00028767,2]
[341591032,1731011486741,-500.0,0.00028767,2]
[341591033,1731011486751,-542.4,0.00028767,2]
[341591034,1731011486760,-794.89,0.00028767,2]
[341591035,1731011486769,-4019.74,0.00028767,2]
[341591036,1731011486778,-500.0,0.00028767,2]
[341591037,1731011486787,-759.28,0.00028767,2]
[341591038,1731011486796,-652.81,0.00028767,2]
[341591039,1731011486806,-3623.88,0.00028767,2]
[341591040,1731011486815,-706.87,0.00028767,2]
[341591041,1731011486825,-1354.3,0.00028767,2]
[341591042,1731011486834,-576.29,0.00028767,2]
[341591043,1731011486844,-534.58,0.00028767,2]
[341591044,1731011486854,-511.69,0.00028767,2]
[341591045,1731011486864,-500.0,0.00028767,2]
[341591046,1731011486874,-1135.74,0.00028767,2]
[341591047,1731011486883,-500.0,0.00028767,2]
[341591048,1731011486894,-3829.5,0.00028767,2]
[341591049,1731011486903,-532.84,0.00028767,2]
[341591050,1731011486912,-1210.85,0.00028767,2]
[341591051,1731011486922,-2233.74,0.00028767,2]
[341591052,1731011486931,-1569.08,0.00028767,2]
[341591053,1731011486940,-2095.57,0.00028767,2]
[341591054,1731011486950,-500.0,0.00028767,2]
[341591055,1731011486962,-993.67,0.00028767,2]
[341591056,1731011486975,-500.0,0.00028767,2]
[341591057,1731011486985,-1109.47,0.00028767,2]
[341591058,1731011486994,-1076.61,0.00028767,2]
[341591059,1731011487004,-2427.73,0.00028767,2]
[341591060,1731011487013,-500.0,0.00028767,2]
[341591061,1731011487022,-822.66,0.00028767,2]
[341591062,1731011487031,-810.32,0.00028767,2]
[341591063,1731011487042,-822.49,0.00028767,2]
[341591064,1731011487052,-534.98,0.00028767,2]
[341591065,1731011487136,-1190.75,0.00028767,2]
[341591066,1731011487148,-860.77,0.00028767,2]
[341591067,1731011487157,-620.7,0.00028767,2]
[341591068,1731011487167,-500.0,0.00028767,2]
[341591069,1731011487176,-500.0,0.00028767,2]
[341591070,1731011487185,-500.0,0.00028767,2]
[341591071,1731011487195,-500.0,0.00028767,2]
[341591072,1731011487206,-500.0,0.00028767,2]
[341591073,1731011487215,-500.0,0.00028767,2]
[341591074,1731011487224,-500.0,0.00028767,2]
[341591075,1731011487234,-539.76,0.00028767,2]
[341591076,1731011487243,-2260.02,0.00028767,2]
[341591077,1731011487253,-1549.38,0.00028767,2]
[341591078,1731011487262,-500.0,0.00028767,2]
[341591079,1731011487272,-823.25,0.00028767,2]
[341591080,1731011487284,-1096.41,0.00028767,2]
[341591081,1731011487295,-500.0,0.00028767,2]
[341591082,1731011487305,-500.0,0.00028767,2]
[341591083,1731011487314,-669.24,0.00028767,2]
[341591084,1731011487325,-789.48,0.00028767,2]
[341591085,1731011487334,-1841.15,0.00028767,2]
[341591086,1731011487343,-500.0,0.00028767,2]
[341591087,1731011487355,-548.44,0.00028767,2]
[341591088,1731011487364,-698.1,0.00028767,2]
[341591089,1731011487374,-569.76,0.00028767,2]
[341591090,1731011487385,-1008.09,0.00028767,2]
[341591091,1731011487396,-500.0,0.00028767,2]
[341591092,1731011487405,-673.81,0.00028767,2]
[341591093,1731011487415,-500.0,0.00028767,2]
[341591094,1731011487425,-500.0,0.00028767,2]
[341591095,1731011487436,-2497.63,0.00028767,2]
[341591096,1731011487445,-500.0,0.00028767,2]
[341591097,1731011487454,-835.05,0.00028767,2]
[341591098,1731011487464,-1408.31,0.00028767,2]
[341591099,1731011487474,-904.6,0.00028767,2]
[341591100,1731011487483,-561.13,0.00028767,2]
[341591101,1731011487492,-526.97,0.00028767,2]
[341591102,1731011487501,-6882.67,0.00028767,2]
[341591103,1731011487510,-946.87,0.00028767,2]
[341591104,1731011487519,-500.0,0.00028767,2]
[341591105,1731011487529,-1999.04,0.00028767,2]
[341591106,1731011487538,-821.23,0.00028767,2]
[341591107,1731011487549,-560.03,0.00028767,2]
[341591108,1731011487558,-687.39,0.00028767,2]
[341591109,1731011487568,-2301.65,0.00028767,2]
[341591110,1731011487577,-1093.66,0.00028767,2]
[341591111,1731011487586,-500.0,0.00028767,2]
[341591112,1731011487596,-982.98,0.00028767,2]
[341591113,1731011487605,-991.72,0.00028767,2]
[341591114,1731011487615,-5959.66,0.00028767,2]
[341591115,1731011487624,-500.0,0.00028767,2]
[341591116,1731011487633,-500.0,0.00028767,2]
[341591117,1731011487643,-901.99,0.00028767,2]
[341591118,1731011487651,-1677.15,0.00028767,2]
[341591119,1731011487661,-731.06,0.00028767,2]
[341591120,1731011487670,-571.58,0.00028767,2]
[341591121,1731011487680,-500.0,0.00028767,2]
[341591122,1731011487689,-1253.48,0.00028767,2]
[341591123,1731011487698,-515.96,0.00028767,2]
[341591124,1731011487708,-6458.46,0.00028767,2]
[341591125,1731011487716,-500.0,0.00028767,2]
[341591126,1731011487725,-500.0,0.00028767,2]
[341591127,1731011487735,-4746.89,0.00028767,2]
[341591128,1731011487744,-500.0,0.00028767,2]
[341591129,1731011487753,-500.0,0.00028767,2]
[341591130,1731011487763,-669.2,0.00028767,2]
[341591131,1731011487774,-500.0,0.00028767,2]
[341591132,1731011487783,-500.0,0.00028767,2]
[341591133,1731011487792,-800.33,0.00028767,2]
[341591134,1731011487801,-1504.63,0.00028767,2]
[341591135,1731011487810,-667.25,0.00028767,2]
[341591136,1731011487819,-752.87,0.00028767,2]
[341591137,1731011487829,-169.0,0.00028767,120]
[341591138,1731011487838,-151.0,0.000288,7]
[341591139,1731011487848,-1000.0,0.000288,2]
[341591140,1731011487858,-151.0,0.00028808,7]
[341591141,1731011487867,-151.0,0.00028808,7]
[341591142,1731011487877,-151.0,0.00028808,7]
[341591143,1731011487886,-215.934326,0.00028808,7]
[341591144,1731011487898,-215.934326,0.00028808,7]
[341591145,1731011487907,-151.0,0.00028808,7]
[341591146,1731011487917,-1000.0,0.00028808,2]
[341591147,1731011487927,-1210.33,0.00028808,2]
[341591148,1731011487936,-588.8,0.00028808,2]
[341591149,1731011487945,-609.69,0.00028808,2]
[341591150,1731011487956,-500.0,0.00028808,2]
[341591151,1731011487968,-500.0,0.00028808,2]
[341591152,1731011487982,-729.75,0.00028808,2]
[341591153,1731011487991,-151.0,0.00028808,7]
[341591154,1731011488000,-694.0,0.00028808,2]
[341591155,1731011488010,-605.27,0.00028808,2]
[341591156,1731011488019,-615.66,0.00028808,2]
[341591157,1731011488028,-618.11,0.00028808,2]
[341591158,1731011488038,-740.59,0.00028808,2]
[341591159,1731011488050,-661.7,0.00028808,2]
[341591160,1731011488060,-1146.09,0.00028808,2]
[341591161,1731011488069,-903.61,0.00028808,2]
[341591162,1731011488079,-611.13,0.00028808,2]
[341591163,1731011488087,-536.6,0.00028808,2]
[341591164,1731011488097,-500.0,0.00028808,2]
[341591165,1731011488106,-1742.22,0.00028808,2]
[341591166,1731011488115,-681.8,0.00028808,2]
[341591167,1731011488124,-500.0,0.00028808,2]
[341591168,1731011488134,-796.28,0.00028808,2]
[341591169,1731011488148,-1014.82,0.00028808,2]
[341591170,1731011488156,-267.972963,0.00028808,7]
[341591171,1731011488166,-267.972961,0.00028808,7]
[341591172,1731011488175,-869.27,0.00028808,2]
[341591173,1731011488185,-1155.46,0.00028808,2]
[341591174,1731011488196,-803.98,0.00028808,2]
[341591175,1731011488205,-500.0,0.00028808,2]
[341591176,1731011488215,-720.32,0.00028808,2]
[341591177,1731011488224,-476.89288912,0.00028808,2]
[341591178,1731011488234,-702.99,0.00028808,2]
[341591179,1731011488243,-500.0,0.00028808,2]
[341591180,1731011488253,-614.56,0.00028808,2]
[341591181,1731011488262,-1075.73,0.00028808,2]
[341591182,1731011488272,-1171.81,0.00028808,2]
[341591183,1731011488281,-1149.96,0.00028808,2]
[341591184,1731011488291,-937.81,0.00028808,2]
[341591185,1731011488300,-500.0,0.00028808,2]
[341591186,1731011488310,-758.67,0.00028808,2]
[341591187,1731011488320,-500.0,0.00028808,2]
[341591188,1731011488329,-500.0,0.00028808,2]
[341591189,1731011488339,-573.46,0.00028808,2]
[341591190,1731011488348,-1475.73,0.00028808,2]
[341591191,1731011488357,-671.65,0.00028808,2]
[341591192,1731011488367,-695.77,0.00028808,2]
[341591193,1731011488377,-500.0,0.00028808,2]
[341591194,1731011488386,-10075.22,0.00028808,2]
[341591195,1731011488398,-819.35,0.00028808,2]
[341591196,1731011488407,-647.4,0.00028808,2]
[341591197,1731011488416,-956.23,0.00028808,2]
[341591198,1731011488426,-689.92,0.00028808,2]
[341591199,1731011488436,-4249.4,0.00028808,2]
[341591200,1731011488446,-500.0,0.00028808,2]
[341591201,1731011488455,-500.0,0.00028808,2]
[341591202,1731011488464,-929.84,0.00028808,2]
[341591203,1731011488474,-907.42,0.00028808,2]
[341591204,1731011488483,-3743.23,0.00028808,2]
[341591205,1731011488492,-568.89,0.00028808,2]
[341591206,1731011488502,-500.0,0.00028808,2]
[341591207,1731011488511,-1929.67,0.00028808,2]
[341591208,1731011488520,-500.0,0.00028808,2]
[341591209,1731011488529,-500.0,0.00028808,2]
[341591210,1731011488540,-740.46,0.00028808,2]
[341591211,1731011488550,-1116.29,0.00028808,2]
[341591212,1731011488559,-599.52,0.00028808,2]
[341591213,1731011488568,-801.48,0.00028808,2]
[341591214,1731011488577,-949.5,0.00028808,2]
[341591215,1731011488586,-821.57,0.00028808,2]
[341591216,1731011488596,-999.73,0.00028808,2]
[341591217,1731011488605,-1580.55,0.00028808,2]
[341591218,1731011488614,-513.85,0.00028808,2]
[341591219,1731011488624,-1429.73,0.00028808,2]
[341591220,1731011488634,-727.36,0.00028808,2]
[341591221,1731011488648,-1857.64,0.00028808,2]
[341591222,1731011488658,-2351.69,0.00028808,2]
[341591223,1731011488668,-1048.23,0.00028808,2]
[341591224,1731011488678,-1216.18,0.00028808,2]
[341591225,1731011488688,-3235.8,0.00028808,2]
[341591226,1731011488698,-641.07,0.00028808,2]
[341591227,1731011488708,-602.15,0.00028808,2]
[341591228,1731011488718,-580.34,0.00028808,2]
[341591229,1731011488728,-649.63,0.00028808,2]
[341591230,1731011488739,-543.93,0.00028808,2]
[341591231,1731011488748,-595.99,0.00028808,2]
[341591232,1731011488758,-239.620318,0.00028809,7]
[341591233,1731011488768,-500.0,0.00028809,2]
[341591234,1731011488778,-500.0,0.00028809,2]
[341591235,1731011488787,-239.620318,0.00028809,7]
[341591236,1731011488797,-500.0,0.00028809,2]
[341591237,1731011488807,-500.0,0.00028809,2]
[341591238,1731011488816,-500.0,0.00028809,2]
[341591239,1731011488825,-351.95087704,0.00028809,2]
[341591240,1731011488835,-500.0,0.00028809,2]
[341591241,1731011488844,-500.0,0.00028809,2]
[341591242,1731011488853,-607.83,0.00028809,2]
[341591243,1731011488863,-500.0,0.00028809,2]
[341591244,1731011488872,-531.06881946,0.00028809,2]
[341591245,1731011488882,-760.46,0.00028809,2]
[341591246,1731011488893,-500.0,0.00028809,2]
[341591247,1731011488903,-500.0,0.00028809,2]
[341591248,1731011488912,-513.59695794,0.00028809,2]
[341591249,1731011488921,-569.32902155,0.00028809,2]
[341591250,1731011488930,-500.0,0.00028809,2]
[341591251,1731011488940,-500.0,0.00028809,2]
[341591252,1731011488949,-486.30973088,0.00028809,2]
[341591253,1731011488961,-1078.76,0.00028809,2]
[341591254,1731011488971,-500.0,0.00028809,2]
[341591255,1731011488980,-213.398111,0.00028809,7]
[341591256,1731011488990,-213.398111,0.00028809,7]
[341591257,1731011488999,-500.0,0.00028809,2]
[341591258,1731011489008,-500.0,0.00028809,2]
[341591259,1731011489017,-621.09,0.00028809,2]
[341591260,1731011489026,-636.57,0.00028809,2]
[341591261,1731011489036,-500.0,0.00028809,2]
[341591262,1731011489046,-675.43,0.00028809,2]
[341591263,1731011489056,-971.89,0.00028809,2]
[341591264,1731011489065,-500.0,0.00028809,2]
[341591265,1731011489075,-846.9,0.00028809,2]
[341591266,1731011489084,-248.368801,0.00028809,7]
[341591267,1731011489094,-500.0,0.00028809,2]
[341591268,1731011489104,-248.368801,0.00028809,7]
[341591269,1731011489113,-500.0,0.00028809,2]
[341591270,1731011489122,-904.79,0.00028809,2]
[341591271,1731011489131,-572.85,0.00028809,2]
[341591272,1731011489141,-500.0,0.00028809,2]
[341591273,1731011489151,-2160.92,0.00028809,2]
[341591274,1731011489160,-543.592031,0.00028809,7]
[341591275,1731011489169,-543.592031,0.00028809,7]
[341591276,1731011489179,-1767.52,0.00028809,2]
[341591277,1731011489188,-500.0,0.00028809,2]
[341591278,1731011489197,-1023.78,0.00028809,2]
[341591279,1731011489207,-829.37,0.00028809,2]
[341591280,1731011489216,-500.0,0.00028809,2]
[341591281,1731011489226,-500.0,0.00028809,2]
[341591282,1731011489235,-151.0,0.00028809,7]
[341591283,1731011489245,-500.0,0.00028809,2]
[341591284,1731011489254,-533.07,0.00028809,2]
[341591285,1731011489264,-500.0,0.00028809,2]
[341591286,1731011489275,-290.794095,0.00028809,7]
[341591287,1731011489287,-290.794095,0.00028809,7]
[341591288,1731011489297,-500.0,0.00028809,2]
[341591289,1731011489308,-500.0,0.00028809,2]
[341591290,1731011489319,-500.0,0.00028809,2]
[341591291,1731011489330,-500.0,0.00028809,2]
[341591292,1731011489340,-974.74,0.00028809,2]
[341591293,1731011489350,-896.64,0.00028809,2]
[341591294,1731011489360,-552.79,0.00028809,2]
[341591295,1731011489370,-990.97,0.00028809,2]
[341591296,1731011489380,-2519.45,0.00028809,2]
[341591297,1731011489392,-500.0,0.00028809,2]
[341591298,1731011489403,-519.622172,0.00028809,7]
[341591299,1731011489412,-500.0,0.00028809,2]
[341591300,1731011489423,-151.0,0.00028809,7]
[341591301,1731011489433,-1019.7,0.00028809,2]
[341591302,1731011489443,-500.0,0.00028809,2]
[341591303,1731011489453,-774.76,0.00028809,2]
[341591304,1731011489463,-601.24,0.00028809,2]
[341591305,1731011489473,-284.936427,0.00028809,7]
[341591306,1731011489482,-500.0,0.00028809,2]
[341591307,1731011489492,-4435.81,0.00028809,2]
[341591308,1731011489502,-284.936427,0.00028809,7]
[341591309,1731011489511,-538.61,0.00028809,2]
[341591310,1731011489520,-551.51,0.00028809,2]
[341591311,1731011489529,-1241.37,0.00028809,2]
[341591312,1731011489538,-500.0,0.00028809,2]
[341591313,1731011489547,-151.0,0.00028809,7]
[341591314,1731011489556,-778.73,0.00028809,2]
[341591315,1731011489566,-500.0,0.00028809,2]
[341591316,1731011489576,-284.828298,0.00028809,7]
[341591317,1731011489587,-284.828298,0.00028809,7]
[341591318,1731011489598,-518.46,0.00028809,2]
[341591319,1731011489607,-500.0,0.00028809,2]
[341591320,1731011489616,-679.23,0.00028809,2]
[341591321,1731011489626,-500.0,0.00028809,2]
[341591322,1731011489635,-500.0,0.00028809,2]
[341591323,1731011489645,-530.41,0.00028809,2]
[341591324,1731011489655,-500.0,0.00028809,2]
[341591325,1731011489664,-151.0,0.00028809,7]
[341591326,1731011489673,-500.0,0.00028809,2]
[341591327,1731011489682,-500.0,0.00028809,2]
[341591328,1731011489691,-500.0,0.00028809,2]
[341591329,1731011489700,-622.26,0.00028809,2]
[341591330,1731011489709,-677.13,0.00028809,2]
[341591331,1731011489718,-500.0,0.00028809,2]
[341591332,1731011489728,-500.0,0.00028809,2]
[341591333,1731011489738,-1177.17,0.00028809,2]
[341591334,1731011489747,-500.0,0.00028809,2]
[341591335,1731011489756,-500.0,0.00028809,2]
[341591336,1731011489766,-1091.31,0.00028809,2]
[341591337,1731011489775,-522.84,0.00028809,2]
[341591338,1731011489785,-661.37,0.00028809,2]
[341591339,1731011489795,-197.582513,0.00028809,7]
[341591340,1731011489805,-197.582513,0.00028809,7]
[341591341,1731011489815,-599.74,0.00028809,2]
[341591342,1731011489824,-1275.41,0.00028809,2]
[341591343,1731011489834,-1084.34,0.00028809,2]